[Event "FIDE U16 Olympiad_boards_1-80"]
[Site "Eindhoven, Netherlands"]
[Date "2023.08.14"]
[Round "3.14"]
[White "Gasparyan, Erik R."]
[Black "Erdogmus, Yagiz Kaan"]
[Result "1/2-1/2"]
[TimeControl "2700+10"]
[WhiteElo "2272"]
[BlackElo "2353"]

1. d4 {[%clk 00:45:16]} {[%emt 00:00:03]} Nf6 {[%clk 00:45:17]} {[%emt
00:00:04]} 2. c4 {[%clk 00:45:23]} {[%emt 00:00:03]} e6 {[%clk 00:45:23]}
{[%emt 00:00:04]} 3. g3 {[%clk 00:45:03]} {[%emt 00:00:30]} d5 {[%clk
00:45:03]} {[%emt 00:00:30]} 4. Bg2 {[%clk 00:44:46]} {[%emt 00:00:27]} Bb4+
{[%clk 00:44:53]} {[%emt 00:00:19]} 5. Bd2 {[%clk 00:44:34]} {[%emt 00:00:23]}
a5 {[%clk 00:44:35]} {[%emt 00:00:28]} 6. Qc2 {[%clk 00:40:14]} {[%emt
00:04:30]} O-O {[%clk 00:44:05]} {[%emt 00:00:39]} 7. Nf3 {[%clk 00:39:43]}
{[%emt 00:00:42]} b6 {[%clk 00:40:03]} {[%emt 00:04:12]} 8. O-O {[%clk
00:38:28]} {[%emt 00:01:25]} Bb7 {[%clk 00:36:48]} {[%emt 00:03:24]} 9. Ne5
{[%clk 00:37:09]} {[%emt 00:01:30]} Nbd7 {[%clk 00:33:19]} {[%emt 00:03:38]} 10.
Bf4 {[%clk 00:34:28]} {[%emt 00:02:52]} c6 {[%clk 00:26:20]} {[%emt 00:07:08]}
11. Rd1 {[%clk 00:33:28]} {[%emt 00:01:10]} Rc8 {[%clk 00:25:51]} {[%emt
00:00:39]} 12. c5 {[%clk 00:31:39]} {[%emt 00:01:59]} a4 {[%clk 00:23:28]}
{[%emt 00:02:33]} 13. Nd3 {[%clk 00:29:13]} {[%emt 00:02:36]} bxc5 {[%clk
00:21:29]} {[%emt 00:02:09]} 14. dxc5 {[%clk 00:27:34]} {[%emt 00:01:49]} Ba5
{[%clk 00:21:19]} {[%emt 00:00:20]} 15. Qxa4 {[%clk 00:27:05]} {[%emt
00:00:40]} Bc7 {[%clk 00:20:44]} {[%emt 00:00:44]} 16. Bxc7 {[%clk 00:26:29]}
{[%emt 00:00:46]} Qxc7 {[%clk 00:20:51]} {[%emt 00:00:04]} 17. Nd2 {[%clk
00:25:58]} {[%emt 00:00:41]} e5 {[%clk 00:20:00]} {[%emt 00:01:01]} 18. b4
{[%clk 00:20:03]} {[%emt 00:06:05]} e4 {[%clk 00:19:27]} {[%emt 00:00:43]} 19.
Nf4 {[%clk 00:20:09]} {[%emt 00:00:04]} g5 {[%clk 00:16:03]} {[%emt 00:03:34]}
20. Nh3 {[%clk 00:19:32]} {[%emt 00:00:47]} h6 {[%clk 00:13:39]} {[%emt
00:02:33]} 21. Qc2 {[%clk 00:18:00]} {[%emt 00:01:42]} Nh5 {[%clk 00:11:24]}
{[%emt 00:02:25]} 22. a4 {[%clk 00:16:00]} {[%emt 00:02:11]} g4 {[%clk
00:11:18]} {[%emt 00:00:16]} 23. Nf4 {[%clk 00:16:08]} {[%emt 00:00:01]} Nxf4
{[%clk 00:11:27]} {[%emt 00:00:02]} 24. gxf4 {[%clk 00:16:17]} Qxf4 {[%clk
00:06:12]} {[%emt 00:05:25]} 25. Nxe4 {[%clk 00:14:46]} {[%emt 00:01:41]} Rc7
{[%clk 00:05:41]} {[%emt 00:00:40]} 26. Nd6 {[%clk 00:07:16]} {[%emt 00:07:41]}
Qxb4 {[%clk 00:05:48]} {[%emt 00:00:03]} 27. Qf5 {[%clk 00:06:44]} {[%emt
00:00:41]} Bc8 {[%clk 00:02:55]} {[%emt 00:03:04]} 28. e4 {[%clk 00:05:30]}
{[%emt 00:01:23]} Nxc5 {[%clk 00:01:45]} {[%emt 00:01:20]} 29. Nxc8 {[%clk
00:05:38]} {[%emt 00:00:02]} Rcxc8 {[%clk 00:00:45]} {[%emt 00:01:10]} 30.
Qxg4+ {[%clk 00:05:46]} {[%emt 00:00:03]} Kh8 {[%clk 00:00:37]} {[%emt
00:00:18]} 31. Qh5 {[%clk 00:05:55]} {[%emt 00:00:01]} Kg7 {[%clk 00:00:30]}
{[%emt 00:00:17]} 32. exd5 {[%clk 00:03:37]} {[%emt 00:02:27]} cxd5 {[%clk
00:00:36]} {[%emt 00:00:04]} 33. Qxd5 {[%clk 00:03:41]} {[%emt 00:00:07]} Qf4
{[%clk 00:00:30]} {[%emt 00:00:14]} 34. Rd4 {[%clk 00:02:15]} {[%emt 00:01:37]}
Qf6 {[%clk 00:00:29]} {[%emt 00:00:11]} 35. Rc1 {[%clk 00:00:58]} {[%emt
00:01:28]} Rfd8 {[%clk 00:00:16]} {[%emt 00:00:22]} 36. Rg4+ {[%clk 00:01:07]}
{[%emt 00:00:02]} Kh8 {[%clk 00:00:25]} {[%emt 00:00:01]} 37. Qf3 {[%clk
00:00:22]} {[%emt 00:00:55]} Qxf3 {[%clk 00:00:16]} {[%emt 00:00:19]} 38. Bxf3
{[%clk 00:00:31]} Nd3 {[%clk 00:00:16]} {[%emt 00:00:10]} 39. Rxc8 {[%clk
00:00:14]} {[%emt 00:00:27]} Rxc8 {[%clk 00:00:25]} {[%emt 00:00:01]} 40. Bd5
{[%clk 00:00:13]} {[%emt 00:00:12]} Rc1+ {[%clk 00:00:19]} {[%emt 00:00:16]} 41.
Kg2 {[%clk 00:00:22]} Rc2 {[%clk 00:00:28]} 42. Kg3 {[%emt 00:00:19]} f5 {[%clk
00:00:14]} {[%emt 00:00:23]} 43. Rd4 {[%clk 00:00:15]} {[%emt 00:00:09]} Nxf2
{[%clk 00:00:19]} {[%emt 00:00:06]} 44. a5 {[%clk 00:00:20]} {[%emt 00:00:06]}
Ne4+ {[%clk 00:00:16]} {[%emt 00:00:12]} 45. Kf4 {[%clk 00:00:16]} {[%emt
00:00:15]} Nc5 {[%clk 00:00:20]} {[%emt 00:00:05]} 46. Rc4 {[%clk 00:00:14]}
{[%emt 00:00:12]} Rxc4+ {[%clk 00:00:16]} {[%emt 00:00:14]} 47. Bxc4 {[%clk
00:00:23]} Kg7 {[%clk 00:00:26]} 48. Kxf5 {[%clk 00:00:30]} {[%emt 00:00:03]}
Nb7 {[%clk 00:00:35]} 49. a6 {[%clk 00:00:24]} {[%emt 00:00:15]} Nd6+ {[%clk
00:00:44]} 50. Ke5 {[%clk 00:00:12]} {[%emt 00:00:23]} Nxc4+ {[%clk 00:00:53]}
{[%emt 00:00:01]} 51. Kd4 {[%clk 00:00:21]} Nd6 {[%clk 00:00:53]} {[%emt
00:00:09]} 52. Kc5 {[%clk 00:00:28]} {[%emt 00:00:04]} Nc8 {[%clk 00:01:01]} 53.
Kc6 {[%clk 00:00:29]} {[%emt 00:00:09]} Kf6 {[%clk 00:01:07]} {[%emt 00:00:04]}
54. Kc7 {[%clk 00:00:29]} {[%emt 00:00:10]} Na7 {[%clk 00:01:15]} {[%emt
00:00:03]} 55. Kb6 {[%clk 00:00:31]} {[%emt 00:00:09]} Nc8+ {[%clk 00:01:23]}
56. Kc7 {[%clk 00:00:23]} {[%emt 00:00:18]} Na7 {[%clk 00:01:31]} {[%emt
00:00:01]} 57. Kb6 {[%clk 00:00:31]} {[%emt 00:00:02]} Nc8+ {[%clk 00:01:40]}
1/2-1/2

[Event "FIDE U16 Olympiad_boards_1-80"]
[Site "Eindhoven, Netherlands"]
[Date "2023.08.14"]
[Round "3.15"]
[White "Kilic, Eray"]
[Black "Agasarov, Benik"]
[Result "1/2-1/2"]
[TimeControl "2700+10"]
[WhiteElo "2433"]
[BlackElo "2182"]

1. Nf3 {[%clk 00:45:17]} {[%emt 00:00:03]} d5 {[%clk 00:45:03]} {[%emt
00:00:18]} 2. g3 {[%clk 00:45:25]} {[%emt 00:00:02]} Nf6 {[%clk 00:44:33]}
{[%emt 00:00:40]} 3. Bg2 {[%clk 00:45:34]} {[%emt 00:00:01]} e6 {[%clk
00:44:40]} {[%emt 00:00:03]} 4. O-O {[%clk 00:45:38]} {[%emt 00:00:06]} Be7
{[%clk 00:44:48]} {[%emt 00:00:02]} 5. d4 {[%clk 00:45:44]} {[%emt 00:00:04]}
O-O {[%clk 00:44:53]} {[%emt 00:00:04]} 6. c4 {[%clk 00:45:11]} {[%emt
00:00:43]} dxc4 {[%clk 00:44:58]} {[%emt 00:00:06]} 7. Qc2 {[%clk 00:45:12]}
{[%emt 00:00:09]} a6 {[%clk 00:45:06]} {[%emt 00:00:03]} 8. a4 {[%clk
00:45:20]} {[%emt 00:00:01]} Bd7 {[%clk 00:45:14]} {[%emt 00:00:02]} 9. Qxc4
{[%clk 00:45:27]} {[%emt 00:00:04]} Bc6 {[%clk 00:45:22]} {[%emt 00:00:01]} 10.
Bf4 {[%clk 00:36:17]} {[%emt 00:09:20]} Bd6 {[%clk 00:45:30]} {[%emt 00:00:02]}
11. Bg5 {[%clk 00:35:33]} {[%emt 00:00:54]} Nbd7 {[%clk 00:45:03]} {[%emt
00:00:38]} 12. Nc3 {[%clk 00:35:40]} {[%emt 00:00:02]} h6 {[%clk 00:45:08]}
{[%emt 00:00:05]} 13. Bxf6 {[%clk 00:35:31]} {[%emt 00:00:19]} Nxf6 {[%clk
00:45:16]} {[%emt 00:00:02]} 14. Rfd1 {[%clk 00:35:33]} {[%emt 00:00:08]} a5
{[%clk 00:42:47]} {[%emt 00:02:39]} 15. Ne5 {[%clk 00:31:43]} {[%emt 00:04:00]}
Bxg2 {[%clk 00:42:54]} {[%emt 00:00:03]} 16. Kxg2 {[%clk 00:31:51]} {[%emt
00:00:02]} c6 {[%clk 00:43:12]} {[%emt 00:00:02]} 17. e4 {[%clk 00:30:56]}
{[%emt 00:01:14]} Qe7 {[%clk 00:37:04]} {[%emt 00:06:18]} 18. Nd3 {[%clk
00:28:42]} {[%emt 00:02:25]} Bb4 {[%clk 00:35:37]} {[%emt 00:01:36]} 19. e5
{[%clk 00:28:50]} {[%emt 00:00:03]} Nd5 {[%clk 00:35:42]} {[%emt 00:00:04]} 20.
Nxd5 {[%clk 00:28:25]} {[%emt 00:00:36]} cxd5 {[%clk 00:35:35]} {[%emt
00:00:17]} 21. Qb5 {[%clk 00:27:58]} {[%emt 00:00:37]} Rfc8 {[%clk 00:31:16]}
{[%emt 00:04:28]} 22. Rac1 {[%clk 00:28:07]} {[%emt 00:00:01]} g6 {[%clk
00:29:32]} {[%emt 00:01:55]} 23. f4 {[%clk 00:27:14]} {[%emt 00:01:03]} h5
{[%clk 00:28:55]} {[%emt 00:00:46]} 24. h4 {[%clk 00:26:40]} {[%emt 00:00:44]}
Kh7 {[%clk 00:24:51]} {[%emt 00:04:15]} 25. Kh3 {[%clk 00:21:02]} {[%emt
00:05:48]} Kg8 {[%clk 00:23:56]} {[%emt 00:01:04]} 26. f5 {[%clk 00:20:12]}
{[%emt 00:01:01]} gxf5 {[%clk 00:22:58]} {[%emt 00:01:08]} 27. Rxc8+ {[%clk
00:20:21]} {[%emt 00:00:01]} Rxc8 {[%clk 00:23:06]} {[%emt 00:00:02]} 28. Nf4
{[%clk 00:20:29]} f6 {[%clk 00:16:41]} {[%emt 00:06:36]} 29. exf6 {[%clk
00:18:26]} {[%emt 00:02:13]} Qxf6 {[%clk 00:16:49]} {[%emt 00:00:02]} 30. Qd7
{[%clk 00:18:25]} {[%emt 00:00:11]} Rd8 {[%clk 00:15:33]} {[%emt 00:01:26]} 31.
Qxb7 {[%clk 00:17:24]} {[%emt 00:01:11]} Bd6 {[%clk 00:15:20]} {[%emt
00:00:23]} 32. Qb6 {[%clk 00:15:53]} {[%emt 00:01:41]} Rd7 {[%clk 00:13:30]}
{[%emt 00:02:01]} 33. Re1 {[%clk 00:13:52]} {[%emt 00:02:10]} Qg7 {[%clk
00:12:11]} {[%emt 00:01:29]} 34. Rxe6 {[%clk 00:14:00]} {[%emt 00:00:02]} Qg4+
{[%clk 00:12:10]} {[%emt 00:00:10]} 35. Kh2 {[%clk 00:14:10]} {[%emt 00:00:01]}
Rg7 {[%clk 00:12:04]} {[%emt 00:00:16]} 36. Qd8+ {[%clk 00:14:19]} {[%emt
00:00:02]} Bf8 {[%clk 00:12:10]} {[%emt 00:00:03]} 37. Re3 {[%clk 00:14:27]}
{[%emt 00:00:01]} Qd1 {[%clk 00:10:27]} {[%emt 00:01:53]} 38. Qxd5+ {[%clk
00:14:15]} {[%emt 00:00:22]} Rf7 {[%clk 00:10:34]} {[%emt 00:00:03]} 39. Re6
{[%clk 00:12:48]} {[%emt 00:01:38]} Qc2+ {[%clk 00:10:00]} {[%emt 00:00:44]} 40.
Kh3 {[%clk 00:12:28]} {[%emt 00:00:30]} Qd1 {[%clk 00:09:54]} {[%emt 00:00:16]}
41. Rg6+ {[%clk 00:12:32]} {[%emt 00:00:06]} Bg7 {[%clk 00:10:02]} {[%emt
00:00:02]} 42. Ne6 {[%clk 00:11:56]} {[%emt 00:00:46]} Qf1+ {[%clk 00:09:54]}
{[%emt 00:00:18]} 43. Qg2 {[%clk 00:12:04]} {[%emt 00:00:02]} Qd1 {[%clk
00:09:49]} {[%emt 00:00:14]} 44. Ng5 {[%clk 00:05:51]} {[%emt 00:06:23]} f4
{[%clk 00:06:18]} {[%emt 00:03:41]} 45. Qa8+ {[%clk 00:04:54]} {[%emt
00:01:07]} Rf8 {[%clk 00:06:27]} {[%emt 00:00:01]} 46. Rxg7+ {[%clk 00:03:33]}
{[%emt 00:01:32]} Kxg7 {[%clk 00:06:35]} {[%emt 00:00:01]} 47. Qb7+ {[%clk
00:02:30]} {[%emt 00:01:13]} Kg6 {[%clk 00:06:24]} {[%emt 00:00:22]} 48. Qc6+
{[%clk 00:01:50]} {[%emt 00:00:50]} Kg7 {[%clk 00:06:01]} {[%emt 00:00:33]} 49.
Qd7+ {[%clk 00:00:36]} {[%emt 00:01:24]} Kg6 {[%clk 00:06:09]} {[%emt
00:00:01]} 50. Qe6+ {[%clk 00:00:44]} {[%emt 00:00:02]} Kg7 {[%clk 00:06:01]}
{[%emt 00:00:19]} 51. Qe7+ {[%clk 00:00:38]} {[%emt 00:00:16]} Kg6 {[%clk
00:06:09]} {[%emt 00:00:01]} 52. Qe4+ {[%clk 00:00:44]} {[%emt 00:00:04]} Kg7
{[%clk 00:03:44]} {[%emt 00:02:36]} 53. Ne6+ {[%clk 00:00:42]} {[%emt
00:00:12]} Kf7 {[%clk 00:03:53]} 54. Qf5+ {[%clk 00:00:29]} {[%emt 00:00:24]}
Ke7 {[%clk 00:04:02]} 55. Qxf8+ {[%clk 00:00:37]} {[%emt 00:00:02]} Kxe6 {[%clk
00:04:11]} 56. d5+ {[%clk 00:00:47]} Kd7 {[%clk 00:03:41]} {[%emt 00:00:40]} 57.
Qf5+ {[%clk 00:00:43]} {[%emt 00:00:12]} Ke8 {[%clk 00:03:05]} {[%emt
00:00:48]} 58. Qe4+ {[%clk 00:00:34]} {[%emt 00:00:19]} Kd8 {[%clk 00:03:06]}
{[%emt 00:00:09]} 59. Kg2 {[%clk 00:00:29]} {[%emt 00:00:15]} Qd2+ {[%clk
00:02:48]} {[%emt 00:00:28]} 60. Kf3 {[%clk 00:00:38]} {[%emt 00:00:01]} fxg3
{[%clk 00:02:57]} {[%emt 00:00:01]} 61. Kxg3 {[%clk 00:00:33]} {[%emt
00:00:14]} Qxb2 {[%emt 00:00:25]} 62. Qe6 {[%clk 00:00:21]} Qb3+ {[%clk
00:02:20]} {[%emt 00:00:54]} 63. Kg2 {[%clk 00:00:15]} {[%emt 00:00:15]} Qxa4
{[%clk 00:02:25]} {[%emt 00:00:06]} 64. Qb6+ {[%clk 00:00:22]} {[%emt
00:00:03]} Kd7 {[%clk 00:02:30]} {[%emt 00:00:04]} 65. Qe6+ {[%clk 00:00:31]}
{[%emt 00:00:02]} Kd8 {[%clk 00:02:39]} 66. Qf6+ {[%clk 00:00:34]} {[%emt
00:00:06]} Kd7 {[%clk 00:02:17]} {[%emt 00:00:33]} 67. Qf5+ {[%clk 00:00:23]}
{[%emt 00:00:21]} Kd6 {[%clk 00:02:26]} {[%emt 00:00:01]} 68. Qxh5 {[%clk
00:00:22]} {[%emt 00:00:11]} Qe4+ {[%clk 00:02:34]} 69. Kf2 {[%clk 00:00:30]}
{[%emt 00:00:02]} Qf4+ {[%clk 00:02:37]} {[%emt 00:00:08]} 70. Ke2 {[%clk
00:00:31]} {[%emt 00:00:09]} Qe4+ {[%clk 00:02:46]} {[%emt 00:00:01]} 71. Kd2
{[%clk 00:00:24]} {[%emt 00:00:17]} Qxd5+ {[%clk 00:02:49]} {[%emt 00:00:06]}
72. Qxd5+ {[%clk 00:00:32]} {[%emt 00:00:02]} Kxd5 {[%clk 00:02:58]} 73. Kc3
{[%clk 00:00:41]} {[%emt 00:00:01]} Ke5 {[%clk 00:03:07]} 74. Kb3 {[%clk
00:00:50]} {[%emt 00:00:02]} Kf5 {[%clk 00:03:16]} 75. Ka4 {[%clk 00:00:59]}
Kg4 {[%clk 00:03:26]} 76. Kxa5 {[%clk 00:01:08]} {[%emt 00:00:01]} Kxh4 {[%clk
00:03:35]} 1/2-1/2

[Event "FIDE U16 Olympiad_boards_1-80"]
[Site "Eindhoven, Netherlands"]
[Date "2023.08.14"]
[Round "3.16"]
[White "Hayrapetyan, Nvard"]
[Black "Akat, Elifnaz"]
[Result "0-1"]
[TimeControl "2700+10"]
[WhiteElo "1530"]
[BlackElo "1726"]

1. e4 {[%clk 00:45:18]} {[%emt 00:00:01]} c5 {[%clk 00:45:15]} {[%emt
00:00:05]} 2. Nc3 {[%clk 00:45:26]} {[%emt 00:00:02]} Nc6 {[%clk 00:45:08]}
{[%emt 00:00:17]} 3. Bb5 {[%clk 00:45:35]} {[%emt 00:00:02]} g6 {[%clk
00:44:41]} {[%emt 00:00:37]} 4. Bxc6 {[%clk 00:45:42]} {[%emt 00:00:02]} dxc6
{[%clk 00:44:39]} {[%emt 00:00:12]} 5. d3 {[%clk 00:45:51]} {[%emt 00:00:02]}
Bg7 {[%clk 00:44:40]} {[%emt 00:00:09]} 6. Nge2 {[%clk 00:45:53]} {[%emt
00:00:08]} e5 {[%clk 00:44:42]} {[%emt 00:00:08]} 7. Be3 {[%clk 00:46:02]}
{[%emt 00:00:01]} Qe7 {[%clk 00:44:35]} {[%emt 00:00:16]} 8. Qd2 {[%clk
00:46:07]} {[%emt 00:00:05]} Nf6 {[%clk 00:44:39]} {[%emt 00:00:06]} 9. h3
{[%clk 00:45:30]} {[%emt 00:00:47]} O-O {[%clk 00:44:04]} {[%emt 00:00:45]} 10.
O-O {[%clk 00:45:36]} {[%emt 00:00:04]} Nh5 {[%clk 00:40:27]} {[%emt 00:03:47]}
11. Bh6 {[%clk 00:43:41]} {[%emt 00:02:06]} f5 {[%clk 00:39:36]} {[%emt
00:01:00]} 12. Bxg7 {[%clk 00:43:44]} {[%emt 00:00:07]} Qxg7 {[%clk 00:39:24]}
{[%emt 00:00:22]} 13. f4 {[%clk 00:43:26]} {[%emt 00:00:29]} Qh6 {[%clk
00:34:01]} {[%emt 00:05:33]} 14. Rf3 {[%clk 00:38:12]} {[%emt 00:05:24]} fxe4
{[%clk 00:30:43]} {[%emt 00:03:27]} 15. Nxe4 {[%clk 00:38:11]} {[%emt
00:00:11]} exf4 {[%clk 00:29:53]} {[%emt 00:01:00]} 16. g4 {[%clk 00:28:19]}
{[%emt 00:10:02]} Ng7 {[%clk 00:25:45]} {[%emt 00:04:18]} 17. Nxf4 {[%clk
00:27:05]} {[%emt 00:01:24]} g5 {[%clk 00:25:13]} {[%emt 00:00:41]} 18. Qf2
{[%clk 00:12:27]} {[%emt 00:14:49]} Rxf4 {[%clk 00:23:43]} {[%emt 00:01:39]} 19.
Rxf4 {[%clk 00:08:59]} {[%emt 00:03:39]} gxf4 {[%clk 00:23:51]} {[%emt
00:00:02]} 20. g5 {[%clk 00:09:06]} {[%emt 00:00:02]} Qxh3 {[%clk 00:22:34]}
{[%emt 00:01:27]} 21. Nf6+ {[%clk 00:09:14]} {[%emt 00:00:02]} Kh8 {[%clk
00:22:26]} {[%emt 00:00:18]} 22. Qxf4 {[%clk 00:08:51]} {[%emt 00:00:34]} Qf5
{[%clk 00:19:43]} {[%emt 00:02:52]} 23. Qh4 {[%clk 00:05:24]} {[%emt 00:03:38]}
Ne6 {[%clk 00:19:23]} {[%emt 00:00:29]} 24. Ne4 {[%clk 00:03:45]} {[%emt
00:01:50]} Nd4 {[%clk 00:19:03]} {[%emt 00:00:29]} 25. Qh6 {[%clk 00:02:10]}
{[%emt 00:01:46]} Qg4+ {[%clk 00:16:54]} {[%emt 00:02:19]} 26. Kf2 {[%clk
00:00:46]} {[%emt 00:01:34]} Qf3+ {[%clk 00:16:32]} {[%emt 00:00:32]} 27. Kg1
{[%clk 00:00:55]} {[%emt 00:00:01]} Ne2+ {[%clk 00:14:14]} {[%emt 00:02:29]} 28.
Kh2 {[%clk 00:01:02]} {[%emt 00:00:02]} Qf4+ {[%clk 00:14:19]} {[%emt
00:00:05]} 29. Kg2 {[%clk 00:00:46]} {[%emt 00:00:26]} Bf5 {[%clk 00:12:19]}
{[%emt 00:02:09]} 30. Nf6 {[%clk 00:00:21]} {[%emt 00:00:36]} Qg3+ {[%clk
00:12:08]} {[%emt 00:00:20]} 31. Kf1 {[%clk 00:00:30]} {[%emt 00:00:02]} Nf4
{[%clk 00:11:49]} {[%emt 00:00:29]} 0-1

[Event "FIDE U16 Olympiad_boards_1-80"]
[Site "Eindhoven, Netherlands"]
[Date "2023.08.14"]
[Round "3.17"]
[White "Suleimen, Ergali"]
[Black "Begmuratov, Khumoyun"]
[Result "0-1"]
[TimeControl "2700+10"]
[WhiteElo "2095"]
[BlackElo "2270"]

1. e4 {[%clk 00:45:17]} {[%emt 00:00:02]} c5 {[%clk 00:45:17]} {[%emt
00:00:04]} 2. Nf3 {[%clk 00:45:15]} {[%emt 00:00:11]} d6 {[%clk 00:45:25]}
{[%emt 00:00:02]} 3. d4 {[%clk 00:45:01]} {[%emt 00:00:24]} cxd4 {[%clk
00:45:28]} {[%emt 00:00:08]} 4. Nxd4 {[%clk 00:45:07]} {[%emt 00:00:03]} Nf6
{[%clk 00:45:35]} {[%emt 00:00:03]} 5. Nc3 {[%clk 00:45:10]} {[%emt 00:00:06]}
a6 {[%clk 00:45:44]} {[%emt 00:00:02]} 6. Be3 {[%clk 00:44:54]} {[%emt
00:00:26]} e5 {[%clk 00:45:36]} {[%emt 00:00:18]} 7. Nb3 {[%clk 00:44:59]}
{[%emt 00:00:04]} Be6 {[%clk 00:45:38]} {[%emt 00:00:08]} 8. f3 {[%clk
00:44:56]} {[%emt 00:00:14]} Be7 {[%clk 00:44:26]} {[%emt 00:01:22]} 9. g4
{[%clk 00:44:59]} {[%emt 00:00:07]} h6 {[%clk 00:34:22]} {[%emt 00:10:14]} 10.
Qd2 {[%clk 00:44:35]} {[%emt 00:00:33]} Nbd7 {[%clk 00:32:07]} {[%emt
00:02:26]} 11. O-O-O {[%clk 00:43:13]} {[%emt 00:01:32]} Qc7 {[%clk 00:30:47]}
{[%emt 00:01:30]} 12. Kb1 {[%clk 00:39:16]} {[%emt 00:04:08]} Rc8 {[%clk
00:30:36]} {[%emt 00:00:19]} 13. h4 {[%clk 00:37:47]} {[%emt 00:01:39]} b5
{[%clk 00:26:51]} {[%emt 00:03:55]} 14. Rg1 {[%clk 00:36:54]} {[%emt 00:01:04]}
Nb6 {[%clk 00:21:32]} {[%emt 00:05:29]} 15. g5 {[%clk 00:34:06]} {[%emt
00:02:57]} hxg5 {[%clk 00:21:40]} {[%emt 00:00:03]} 16. hxg5 {[%clk 00:34:11]}
{[%emt 00:00:04]} Nfd7 {[%clk 00:21:44]} {[%emt 00:00:06]} 17. g6 {[%clk
00:27:45]} {[%emt 00:06:37]} f5 {[%clk 00:21:18]} {[%emt 00:00:36]} 18. Bd3
{[%clk 00:16:49]} {[%emt 00:11:06]} Nc4 {[%clk 00:13:21]} {[%emt 00:08:07]} 19.
Bxc4 {[%clk 00:16:04]} {[%emt 00:00:54]} Qxc4 {[%clk 00:12:35]} {[%emt
00:00:56]} 20. Bg5 {[%clk 00:11:19]} {[%emt 00:04:56]} Bxg5 {[%clk 00:04:09]}
{[%emt 00:08:37]} 21. Qxg5 {[%clk 00:07:35]} {[%emt 00:03:52]} b4 {[%clk
00:04:14]} {[%emt 00:00:06]} 22. exf5 {[%clk 00:06:03]} {[%emt 00:01:42]} bxc3
{[%clk 00:02:51]} {[%emt 00:01:33]} 23. Rxd6 {[%clk 00:03:37]} {[%emt
00:02:36]} Bd5 {[%clk 00:01:26]} {[%emt 00:01:35]} 24. f6 {[%clk 00:01:17]}
{[%emt 00:02:30]} cxb2 {[%clk 00:01:34]} {[%emt 00:00:03]} 25. Qf5 {[%clk
00:01:17]} {[%emt 00:00:08]} Nxf6 {[%clk 00:00:27]} {[%emt 00:01:17]} 26. Qxe5+
{[%clk 00:00:27]} {[%emt 00:01:01]} Kf8 {[%clk 00:00:37]} {[%emt 00:00:01]} 27.
Rg2 {[%clk 00:00:19]} {[%emt 00:00:17]} Rh1+ {[%clk 00:00:41]} {[%emt
00:00:06]} 28. Kxb2 {[%clk 00:00:27]} {[%emt 00:00:01]} Re8 {[%clk 00:00:26]}
{[%emt 00:00:25]} 29. Rxf6+ {[%clk 00:00:27]} {[%emt 00:00:10]} gxf6 {[%clk
00:00:32]} {[%emt 00:00:05]} 30. g7+ {[%clk 00:00:14]} {[%emt 00:00:22]} Kf7
{[%clk 00:00:41]} {[%emt 00:00:02]} 31. Qf5 {[%clk 00:00:23]} {[%emt 00:00:01]}
Kg8 {[%clk 00:00:32]} {[%emt 00:00:19]} 32. Qd7 {[%clk 00:00:13]} {[%emt
00:00:20]} Bf7 {[%clk 00:00:39]} {[%emt 00:00:02]} 33. Rg4 {[%clk 00:00:13]}
{[%emt 00:00:11]} Qf1 {[%clk 00:00:31]} {[%emt 00:00:17]} 34. Ka3 {[%clk
00:00:12]} {[%emt 00:00:11]} Qxf3 {[%clk 00:00:19]} {[%emt 00:00:23]} 35. Rb4
{[%clk 00:00:17]} {[%emt 00:00:05]} Qd5 {[%clk 00:00:21]} {[%emt 00:00:07]} 36.
Qa7 {[%clk 00:00:16]} {[%emt 00:00:12]} Rh5 {[%clk 00:00:20]} {[%emt 00:00:10]}
37. Rb7 {[%clk 00:00:17]} {[%emt 00:00:09]} Kxg7 {[%clk 00:00:26]} {[%emt
00:00:04]} 38. Rd7 {[%clk 00:00:23]} {[%emt 00:00:04]} Qe6 {[%clk 00:00:23]}
{[%emt 00:00:13]} 39. Qc7 {[%clk 00:00:21]} {[%emt 00:00:13]} Rd5 {[%clk
00:00:22]} {[%emt 00:00:10]} 40. Qg3+ {[%clk 00:00:16]} {[%emt 00:00:15]} Kf8
{[%clk 00:00:31]} {[%emt 00:00:02]} 41. Rb7 {[%clk 00:00:23]} {[%emt 00:00:03]}
Qd6+ {[%clk 00:00:40]} {[%emt 00:00:01]} 0-1

[Event "FIDE U16 Olympiad_boards_1-80"]
[Site "Eindhoven, Netherlands"]
[Date "2023.08.14"]
[Round "3.18"]
[White "Bakhrillaev, Bakhrom"]
[Black "Nurgaliyev, Sauat"]
[Result "1/2-1/2"]
[TimeControl "2700+10"]
[WhiteElo "2144"]
[BlackElo "2062"]

1. d4 {[%clk 00:45:19]} Nf6 {[%clk 00:45:18]} {[%emt 00:00:03]} 2. c4 {[%clk
00:45:28]} g6 {[%clk 00:44:53]} {[%emt 00:00:36]} 3. Nc3 {[%clk 00:45:36]}
{[%emt 00:00:01]} d5 {[%clk 00:45:02]} {[%emt 00:00:02]} 4. cxd5 {[%clk
00:45:45]} Nxd5 {[%clk 00:45:10]} {[%emt 00:00:01]} 5. e4 {[%clk 00:45:54]}
Nxc3 {[%clk 00:45:17]} {[%emt 00:00:05]} 6. bxc3 {[%clk 00:46:04]} Bg7 {[%clk
00:45:22]} {[%emt 00:00:04]} 7. Be3 {[%clk 00:46:13]} {[%emt 00:00:01]} c5
{[%clk 00:45:21]} {[%emt 00:00:10]} 8. Qd2 {[%clk 00:46:22]} {[%emt 00:00:01]}
Qa5 {[%clk 00:45:07]} {[%emt 00:00:24]} 9. Nf3 {[%clk 00:46:29]} {[%emt
00:00:04]} O-O {[%clk 00:43:15]} {[%emt 00:02:02]} 10. Rb1 {[%clk 00:46:37]}
{[%emt 00:00:01]} a6 {[%clk 00:41:28]} {[%emt 00:01:57]} 11. Rc1 {[%clk
00:46:42]} {[%emt 00:00:06]} cxd4 {[%clk 00:41:33]} {[%emt 00:00:05]} 12. cxd4
{[%clk 00:46:38]} {[%emt 00:00:13]} Qxd2+ {[%clk 00:41:26]} {[%emt 00:00:17]}
13. Kxd2 {[%clk 00:46:27]} {[%emt 00:00:22]} Rd8 {[%clk 00:39:06]} {[%emt
00:02:29]} 14. Bd3 {[%clk 00:41:01]} {[%emt 00:05:37]} Bg4 {[%clk 00:33:00]}
{[%emt 00:06:16]} 15. Rc7 {[%clk 00:38:26]} {[%emt 00:02:45]} Bxf3 {[%clk
00:25:39]} {[%emt 00:07:31]} 16. gxf3 {[%clk 00:38:32]} {[%emt 00:00:04]} e6
{[%clk 00:24:04]} {[%emt 00:01:45]} 17. Rb1 {[%clk 00:35:08]} {[%emt 00:03:34]}
b5 {[%clk 00:21:18]} {[%emt 00:02:56]} 18. Rbc1 {[%clk 00:34:36]} {[%emt
00:00:41]} Nd7 {[%clk 00:20:30]} {[%emt 00:00:59]} 19. Rb7 {[%clk 00:33:18]}
{[%emt 00:01:28]} Rab8 {[%clk 00:19:23]} {[%emt 00:01:17]} 20. Rcc7 {[%clk
00:29:06]} {[%emt 00:04:22]} Rxb7 {[%clk 00:18:23]} {[%emt 00:01:10]} 21. Rxb7
{[%clk 00:29:14]} {[%emt 00:00:01]} Bf8 {[%clk 00:18:12]} {[%emt 00:00:22]} 22.
Ra7 {[%clk 00:27:37]} {[%emt 00:01:47]} Nb8 {[%clk 00:15:35]} {[%emt 00:02:47]}
23. Ra8 {[%clk 00:17:42]} {[%emt 00:10:04]} Nc6 {[%clk 00:14:31]} {[%emt
00:01:15]} 24. Rxd8 {[%clk 00:17:45]} {[%emt 00:00:08]} Nxd8 {[%emt 00:00:02]}
25. d5 {[%clk 00:12:50]} {[%emt 00:05:03]} 1/2-1/2